bitfinex/quotes_SOLUSD_20251019
["timestamp","ask_amount","ask_price","bid_price","bid_amount"]
[1760877358216,0.71,188.94,188.9,5.9735286]
[1760877359435,29.74368202,188.96,188.9,5.9735286]
[1760877359636,23.08,188.96,188.9,5.2935286]
[1760877359813,0.2,188.96,188.91,0.68]
[1760877360123,0.91,188.96,188.92,0.68]
[1760877361116,23.08,188.96,188.9,79.92804421]
[1760877361435,0.2,188.96,188.94,5.2926855]
[1760877361645,0.2,188.96,188.95,27.56]
[1760877363534,0.2,188.96,188.95,26.88]
[1760877365418,0.2,188.96,188.93,5.29286219]
[1760877365624,0.2,188.96,188.94,26.88]
[1760877366332,0.2,188.96,188.95,0.68]
[1760877367325,0.2,188.96,188.95,5.97240539]
[1760877367532,0.2,188.96,188.95,67.37240539]
[1760877367731,0.2,188.96,188.95,78.2488806]
[1760877369642,0.2,188.99,188.96,10.87647521]
[1760877369821,0.2,189.05,188.98,10.87647521]
[1760877370340,0.2,189.05,189.02,10.87647521]
[1760877370541,0.2,189.05,189.03,26.88]
[1760877370744,0.2,189.05,189.04,5.28988573]
[1760877370947,0.2,189.05,189.04,5.99988573]
[1760877373634,0.2,189.05,189.04,16.87636094]
[1760877374839,0.2,189.07,189.05,10.87647521]
[1760877375044,0.2,189.07,189.06,37.73647521]
[1760877375244,0.2,189.07,189.06,38.41647521]
[1760877375551,0.2,189.07,189.04,102.79460007]
[1760877375741,0.2,189.07,189.06,26.86]
[1760877377455,0.2,189.07,189.06,32.14932613]
[1760877377657,0.2,189.07,189.06,32.82932613]
[1760877381144,0.2,189.07,189.06,105.10580134]
[1760877382742,0.2,189.07,189.06,93.54932613]
[1760877383146,0.2,189.07,189.06,105.10580134]
[1760877384160,0.2,189.07,189.06,78.24580134]
[1760877384362,0.2,189.07,189.06,105.10580134]
[1760877385841,0.2,189.07,189.06,104.42580134]
[1760877386555,0.2,189.07,189.06,105.10580134]
[1760877386955,0.2,189.07,189.06,78.24580134]
[1760877387164,0.2,189.07,189.06,104.42580134]
[1760877387353,0.2,189.07,189.06,93.54932613]
[1760877388891,0.89,189.07,189.06,32.14932613]
[1760877389196,0.2,189.07,189.06,32.14932613]
[1760877392494,0.2,189.07,189.06,104.42580134]
[1760877392804,0.2,189.07,189.06,105.10580134]
[1760877393104,0.2,189.09,189.07,10.87647521]
[1760877393271,0.69,189.08,189.06,5.28932613]
[1760877393470,0.69,189.08,189.07,26.86]
[1760877393677,0.2,189.09,189.08,5.28876665]
[1760877394079,0.2,189.09,189.08,16.84524186]
[1760877394672,0.2,189.09,189.08,39.72524186]
[1760877395992,0.2,189.09,189.08,39.04524186]
[1760877398371,0.89,189.09,189.08,28.16876665]
[1760877398683,0.2,189.09,189.08,65.88524186]
[1760877399583,0.2,189.09,189.08,127.28524186]
[1760877400569,0.2,189.09,189.08,66.68876665]
[1760877400770,0.2,189.09,189.08,88.26]
[1760877400981,0.2,189.09,189.08,93.54876665]
[1760877401191,0.89,189.09,189.08,93.54876665]
[1760877402499,0.89,189.09,189.08,32.14876665]
[1760877403901,0.89,189.09,189.06,18.51264147]
[1760877404202,0.72,189.08,189.06,5.28932613]
[1760877404399,0.2,189.09,189.06,5.28932613]
[1760877404699,0.2,189.09,189.07,26.84]
[1760877405002,0.72,189.08,189.07,26.84]
[1760877405177,0.2,189.09,189.06,5.28932613]
[1760877405382,0.92,189.09,189.07,26.84]
[1760877405588,0.2,189.09,189.07,26.84]
[1760877405797,0.72,189.08,189.07,26.84]
[1760877406113,0.2,189.09,189.07,26.84]
[1760877406283,0.2,189.09,189.08,26.84]
[1760877406804,0.2,189.09,189.08,32.12876665]
[1760877406998,0.92,189.09,189.08,32.12876665]
[1760877407200,0.92,189.09,189.08,5.28876665]
[1760877407389,0.92,189.09,189.08,32.12876665]
[1760877408391,0.2,189.09,189.08,32.12876665]
[1760877408711,0.2,189.09,189.08,93.52876665]
[1760877409798,0.2,189.09,189.08,66.68876665]
[1760877410030,0.2,189.09,189.08,93.52876665]
[1760877411689,1e-08,189.09,189.08,78.26524186]
[1760877411890,1e-08,189.11,189.1,33.75647521]
[1760877412114,1e-08,189.11,189.1,95.15647521]
[1760877412428,0.2,189.15,189.14,33.75647521]
[1760877412632,0.2,189.16,189.15,10.87647521]
[1760877412911,0.2,189.16,189.15,11.57647521]
[1760877413691,0.2,189.16,189.15,16.16328462]
[1760877413895,0.2,189.16,189.15,32.14680941]
[1760877413896,0.92,189.16,189.15,32.14680941]
[1760877414819,0.92,189.16,189.15,32.16680941]
[1760877415005,0.2,189.16,189.15,32.16680941]
[1760877415513,0.2,189.16,189.15,43.74328462]
[1760877416119,0.2,189.16,189.15,43.04328462]
[1760877416319,1e-08,189.16,189.15,66.62328462]
[1760877416702,1e-08,189.18,189.17,22.88]
[1760877417198,1e-08,189.18,189.17,50.48]
[1760877417714,1e-08,189.18,189.17,55.76625046]
[1760877418022,0.72000001,189.18,189.17,5.28625046]
[1760877418197,1e-08,189.18,189.17,32.18625046]
[1760877420423,1e-08,189.18,189.17,105.16272567]
[1760877420626,1.84110008,189.22,189.21,33.75647521]
[1760877420930,1.84110008,189.22,189.21,60.65647521]
[1760877421326,1.84110008,189.22,189.21,61.35647521]
[1760877421531,0.1,189.25,189.21,122.75647521]
[1760877421824,0.1,189.25,189.23,10.87647521]
[1760877422002,0.1,189.25,189.24,43.06077028]
[1760877422404,0.1,189.25,189.24,43.76077028]
[1760877422609,0.1,189.25,189.24,43.06077028]
[1760877424523,0.1,189.25,189.24,43.76077028]
[1760877424697,0.1,189.26,189.24,43.76077028]
[1760877425114,0.1,189.26,189.24,5.98429507]
[1760877425303,0.1,189.26,189.25,37.77647521]
[1760877426132,0.1,189.26,189.25,43.06049106]
[1760877427325,0.1,189.26,189.25,43.76049106]
[1760877430024,0.1,189.26,189.25,104.46049106]
[1760877431508,0.1,189.26,189.25,93.58401585]
[1760877431821,0.1,189.26,189.25,26.9]
[1760877431822,0.79,189.26,189.25,26.9]
[1760877432129,0.79,189.26,189.25,32.18401585]
[1760877433624,0.79,189.26,189.23,5.28457432]
[1760877433831,0.68,189.25,189.24,26.9]
[1760877434436,0.68,189.25,189.2,5.28541226]
[1760877434615,0.68,189.24,189.2,5.28541226]
[1760877434808,0.68,189.23,189.21,26.9]
[1760877435005,0.68,189.22,189.21,26.9]
[1760877435619,0.68,189.22,189.16,5.2863056]
[1760877435830,0.68,189.21,189.16,5.2863056]
[1760877436128,0.68,189.2,189.17,26.9]
[1760877436329,0.68,189.19,189.17,32.18615544]
[1760877436543,0.68,189.18,189.17,26.9]
[1760877439237,5.9660147,189.18,189.11,61.4]
[1760877439442,1.3407813,189.17,189.08,5.28876665]
[1760877439737,0.68,189.16,189.09,26.9]
[1760877439943,0.6607813,189.17,189.1,0.71]
[1760877440236,0.68,189.19,189.13,10.87647521]
[1760877440444,0.68,189.19,189.15,5.28680941]
[1760877440813,0.68,189.18,189.15,5.28680941]
[1760877441213,0.6606067,189.22,189.15,5.28680941]
[1760877441214,0.68,189.17,189.15,5.28680941]
[1760877442235,0.68,189.16,189.15,5.28680941]
[1760877442421,0.68,189.16,189.14,26.92]
[1760877442750,0.68,189.15,189.12,5.28742577]
[1760877442919,0.68,189.14,189.13,26.92]
[1760877444316,0.68,189.14,189.12,26.92]
[1760877444515,0.68,189.13,189.12,26.92]
[1760877444739,1.3407813,189.17,189.12,26.92]
[1760877444936,0.68,189.17,189.12,27.63]
[1760877445312,0.68,189.2,189.13,0.71]
[1760877445528,0.68,189.2,189.13,62.11]
[1760877445721,0.68,189.19,189.13,61.4]
[1760877446037,0.66074637,189.18,189.09,13.22075803]
[1760877446243,0.68,189.17,189.1,26.92]
[1760877446537,0.68,189.16,189.1,32.20820729]
[1760877448342,0.68,189.16,189.1,32.91820729]
[1760877448540,0.66074637,189.18,189.1,32.20820729]
[1760877448733,0.68,189.15,189.1,32.20820729]
[1760877448939,0.68,189.14,189.1,32.20820729]
[1760877449133,5.28569163,189.19,189.1,32.20820729]
[1760877449134,0.68,189.13,189.1,32.20820729]
[1760877449642,0.68,189.15,189.1,32.20820729]
[1760877449842,0.68,189.14,189.1,32.20820729]
[1760877450948,1.34074637,189.18,189.11,0.71]
[1760877451829,22.88,189.15,189.11,0.71]
[1760877452036,0.68,189.14,189.1,32.20820729]
[1760877452238,0.68,189.13,189.1,32.20820729]
[1760877452546,0.68,189.13,189.11,26.92]
[1760877453244,28.82769753,189.15,189.11,26.92]
[1760877453450,0.68,189.12,189.11,26.92]
[1760877454048,0.68,189.14,189.11,26.92]
[1760877454250,0.68,189.14,189.11,32.20789337]
[1760877455531,0.68,189.18,189.12,0.71]
[1760877455951,22.88,189.17,189.11,5.28789337]
[1760877456139,28.82708771,189.17,189.13,26.92]
[1760877456448,0.68,189.16,189.12,26.92]
[1760877456651,28.82708771,189.17,189.09,5.28830789]
[1760877456652,1.34085117,189.15,189.09,5.28830789]
[1760877456843,0.68,189.14,189.1,26.94]
[1760877457040,0.68,189.13,189.1,26.94]
[1760877457350,0.68,189.12,189.1,26.94]
[1760877457929,28.16682231,189.15,189.1,26.94]
[1760877457930,0.68,189.11,189.1,26.94]
[1760877461249,5.94806251,189.14,189.1,26.94]
[1760877461250,1.34088611,189.14,189.1,26.94]
[1760877461560,1.34088611,189.14,189.1,27.65]
[1760877461759,0.66088611,189.14,189.1,27.65]
[1760877462257,1.34081624,189.16,189.11,0.71]
[1760877462442,0.68,189.15,189.1,32.22820141]
[1760877462652,0.68,189.15,189.1,32.93820141]
[1760877463641,0.68,189.14,189.1,32.22820141]
[1760877463842,0.66,189.13,189.1,32.22820141]
[1760877464472,23.54081624,189.16,189.1,32.22820141]
[1760877464678,23.54081624,189.16,189.1,32.89820141]
[1760877465171,24.20081624,189.16,189.1,32.89820141]
[1760877465376,28.82735857,189.16,189.1,32.89820141]
[1760877465679,0.66,189.15,189.1,32.22820141]
[1760877466288,0.66,189.15,189.1,32.89820141]
[1760877466446,28.82735857,189.16,189.1,32.89820141]
[1760877466637,0.66,189.15,189.1,32.89820141]
[1760877470964,5.94686305,189.15,189.1,27.61]
[1760877472669,5.94686305,189.15,189.1,32.89820416]
[1760877472973,0.66074637,189.18,189.11,0.67]
[1760877473346,6.60675699,189.18,189.11,0.67]
[1760877473785,6.60675699,189.18,189.1,45.4487224]
[1760877474073,0.66,189.17,189.1,46.1187224]
[1760877474579,23.54,189.17,189.12,5.28764805]
[1760877475176,0.66,189.17,189.12,5.95764805]
[1760877475555,0.66,189.17,189.13,0.67]
[1760877476058,5.94675006,189.18,189.14,0.67]
[1760877476265,6.60675006,189.18,189.12,5.95764805]
[1760877478783,0.66,189.17,189.12,5.95764805]
[1760877478975,0.66,189.16,189.12,5.95764805]
[1760877479672,0.66,189.16,189.11,5.28792766]
[1760877479879,0.66,189.16,189.12,0.67]
[1760877480182,23.54074637,189.18,189.12,0.67]
[1760877481583,23.54074637,189.18,189.13,5.28736847]
[1760877481758,24.20074637,189.18,189.13,5.95736847]
[1760877481960,0.66,189.17,189.1,5.28820729]
[1760877482164,1.32081624,189.16,189.1,32.16820729]
[1760877482389,0.66,189.15,189.1,32.16820729]
[1760877482564,0.66,189.18,189.11,0.67]
[1760877482881,23.54,189.18,189.11,0.67]
[1760877483587,24.20074637,189.18,189.12,5.28764805]
[1760877483770,0.66,189.17,189.12,5.28764805]
[1760877483973,1.32081624,189.16,189.11,26.9]
[1760877484173,0.66,189.15,189.11,26.9]
[1760877484374,0.66,189.14,189.11,26.9]
[1760877484770,0.66,189.13,189.09,5.9583375]
[1760877484974,28.16598496,189.18,189.1,0.67]
[1760877484975,0.6607813,189.17,189.1,0.67]
[1760877485188,0.66,189.15,189.1,0.67]
[1760877485984,22.88,189.14,189.11,5.28792766]
[1760877486177,0.66,189.15,189.11,5.28792766]
[1760877487081,5.94717328,189.17,189.11,5.28792766]
[1760877487283,0.66,189.15,189.11,5.28792766]
[1760877487688,0.6607813,189.17,189.12,0.67]
[1760877487998,0.66050198,189.25,189.16,22.88]
[1760877488180,0.76,189.26,189.17,50.47]
[1760877488503,0.76,189.26,189.18,10.87647521]
[1760877488670,0.1,189.26,189.19,0.67]
[1760877489185,0.1,189.26,189.2,26.94]
[1760877489387,1.42046708,189.26,189.21,5.28513292]
[1760877489564,0.66,189.25,189.21,5.28513292]
[1760877490692,0.69,189.24,189.21,5.28513292]
[1760877490863,0.69,189.25,189.21,5.28513292]
[1760877491196,0.69,189.24,189.22,26.92]
[1760877491688,0.76046708,189.26,189.22,26.92]
[1760877491876,0.76046708,189.26,189.2,5.28539852]
[1760877491877,0.69,189.23,189.2,32.20539852]
[1760877492488,1.45046708,189.26,189.2,32.86539852]
[1760877493180,23.64046708,189.26,189.21,0.66]
[1760877493382,23.64046708,189.26,189.22,0.66]
[1760877493678,0.76046708,189.26,189.22,0.66]
[1760877493999,0.65,189.25,189.2,45.41892917]
[1760877494294,0.65,189.25,189.2,32.89539852]
[1760877494495,0.1,189.26,189.21,0.69]
[1760877494669,0.1,189.26,189.22,0.69]
[1760877494868,0.1,189.26,189.23,5.28457432]
[1760877495092,0.1,189.26,189.24,26.92]
[1760877495677,0.1,189.26,189.24,27.61]
[1760877495880,0.1,189.26,189.25,0.69]
[1760877496787,0.1,189.26,189.24,26.92]
[1760877496972,0.1,189.26,189.24,32.20415023]
[1760877497172,0.1,189.26,189.25,0.69]
[1760877497870,0.1,189.26,189.24,32.20415023]
[1760877498086,0.1,189.26,189.24,32.89415023]
[1760877503104,0.1,189.26,189.24,26.92]
[1760877503309,0.75,189.26,189.25,26.9]
[1760877504104,0.1,189.26,189.25,26.9]
[1760877504905,0.1,189.26,189.25,27.59]
[1760877505204,0.1,189.26,189.25,32.87401585]
[1760877506579,0.1,189.26,189.25,94.27401585]
[1760877507201,0.1,189.26,189.25,105.15049106]
[1760877507404,0.1,189.26,189.25,43.75049106]
[1760877507782,0.1,189.26,189.25,32.87401585]
[1760877509099,0.1,189.26,189.25,5.97401585]
[1760877509278,0.1,189.26,189.25,32.87401585]
[1760877509477,0.1,189.26,189.25,5.97401585]
[1760877509694,0.1,189.26,189.25,32.85401585]
[1760877511191,0.1,189.26,189.25,43.73049106]
[1760877511895,0.1,189.26,189.25,105.13049106]
[1760877512209,1e-08,189.26,189.25,105.13049106]
[1760877514513,1e-08,189.28,189.27,22.88]
[1760877514704,1e-08,189.28,189.27,95.15647521]
[1760877514893,1e-08,189.28,189.27,95.84647521]
[1760877515208,1e-08,189.28,189.27,101.1299327]
[1760877515983,22.88,189.38,189.28,10.87647521]
[1760877516191,1.30997888,189.4,189.32,22.88]
[1760877516404,0.65,189.4,189.33,27.57]
[1760877516603,0.65990919,189.42,189.33,27.57]
[1760877516604,0.65,189.39,189.33,27.57]
[1760877516797,0.65,189.38,189.33,27.57]
[1760877517112,0.65,189.37,189.34,5.28150417]
[1760877517285,0.65,189.38,189.34,5.28150417]
[1760877517478,0.65,189.38,189.34,5.97150417]
[1760877517706,0.65,189.41,189.35,0.69]
[1760877517910,0.65,189.41,189.36,26.88]
[1760877518111,0.65,189.4,189.36,26.88]
[1760877518699,22.88,189.43,189.36,27.57]
[1760877518910,0.65,189.42,189.36,27.57]
[1760877519205,0.65,189.41,189.37,5.28066747]
[1760877520006,0.65,189.4,189.37,5.28066747]
[1760877520898,0.65,189.39,189.38,26.86]
[1760877521597,0.65,189.39,189.34,5.28125385]
[1760877521809,0.65,189.38,189.35,26.86]
[1760877522005,0.65,189.37,189.33,5.28178312]
[1760877522312,0.65,189.36,189.34,26.86]
[1760877522505,0.65,189.35,189.34,26.86]
[1760877523415,0.65,189.38,189.34,32.14123182]
[1760877523591,0.65,189.37,189.34,32.14123182]
[1760877523919,0.71,189.36,189.34,32.14123182]
[1760877524118,28.81952332,189.41,189.34,32.14123182]
[1760877524420,0.71,189.35,189.33,5.2817773]
[1760877524715,28.81952332,189.41,189.34,26.86]
[1760877525095,0.71,189.4,189.34,26.86]
[1760877525291,1.37001372,189.39,189.34,26.86]
[1760877525602,0.71,189.38,189.34,32.14147246]
[1760877525804,0.71,189.37,189.34,26.86]
[1760877526017,0.71,189.36,189.34,26.86]
[1760877526328,0.71,189.35,189.34,26.86]
[1760877527729,1.9999997,189.47,189.34,26.86]
[1760877527730,0.65997888,189.4,189.34,32.83150417]
[1760877527924,22.88,189.42,189.34,32.83150417]
[1760877528227,0.71,189.4,189.34,32.14150417]
[1760877528398,0.65994403,189.41,189.34,5.28150417]
[1760877528399,0.71,189.39,189.34,5.28150417]
[1760877528599,0.71,189.38,189.35,26.86]
[1760877529100,0.71,189.38,189.35,32.14108025]
[1760877529297,0.71,189.41,189.35,32.83108025]
[1760877529522,0.71,189.4,189.35,32.14108025]
[1760877529705,0.71,189.39,189.35,32.14108025]
[1760877530097,0.71,189.41,189.36,0.69]
[1760877530301,0.71,189.4,189.35,32.14108025]
[1760877530524,22.88,189.42,189.35,32.83108025]
[1760877530716,0.71,189.39,189.34,5.28138925]
[1760877530917,0.71,189.38,189.35,32.14097037]
[1760877531299,24.24994403,189.41,189.35,32.83097037]
[1760877531695,1.36990919,189.42,189.35,32.83097037]
[1760877532112,0.71,189.41,189.35,32.83097037]
[1760877532509,0.71,189.4,189.36,26.86]
[1760877532710,0.71,189.39,189.36,26.86]
[1760877532919,5.93921019,189.42,189.35,5.28097037]
[1760877533227,0.71,189.41,189.37,26.86]
[1760877533524,0.71,189.4,189.37,26.86]
[1760877533836,0.71,189.39,189.37,26.86]
[1760877535307,0.71,189.38,189.37,26.86]
[1760877535508,0.71,189.4,189.37,26.86]
[1760877535723,0.71,189.39,189.37,26.86]
[1760877538020,0.71,189.38,189.37,26.86]
[1760877538219,5.98986115,189.4,189.37,26.86]
[1760877538421,0.71,189.39,189.37,26.86]
[1760877538811,5.27986115,189.4,189.37,26.86]
[1760877539032,1.37001372,189.39,189.33,61.4]
[1760877539239,0.71,189.38,189.34,26.84]
[1760877539452,0.71,189.38,189.35,26.84]
[1760877540040,0.71,189.37,189.35,26.84]
[1760877541112,5.9403199,189.39,189.31,66.6820941]
[1760877541113,0.71,189.36,189.31,66.6820941]
[1760877541319,0.71,189.35,189.32,26.84]
[1760877541648,0.71,189.37,189.32,26.84]
[1760877541941,0.71,189.36,189.32,26.84]
[1760877542145,6.6503199,189.39,189.33,0.69]
[1760877542511,24.25001372,189.39,189.33,0.69]
[1760877543043,22.88,189.37,189.33,0.69]
[1760877543411,1.37001372,189.39,189.34,0.69]
[1760877543617,1.46983952,189.44,189.35,26.84]
[1760877543832,0.75983952,189.44,189.36,0.69]
[1760877544131,0.71,189.43,189.37,5.28066747]
[1760877544426,0.71,189.43,189.38,27.53]
[1760877544631,0.71,189.43,189.38,26.84]
[1760877544632,0.71,189.42,189.38,26.84]
[1760877544834,0.71,189.41,189.37,26.84]
[1760877545037,0.65990919,189.42,189.37,26.84]
[1760877545038,0.71,189.4,189.37,26.84]
[1760877545535,0.71,189.39,189.37,26.84]
[1760877547546,22.88,189.4,189.37,26.84]
[1760877547750,5.98930591,189.42,189.37,32.12062395]
[1760877547930,1.36994403,189.41,189.37,32.12062395]
[1760877549434,0.65994403,189.41,189.37,26.84]
[1760877549748,0.71,189.4,189.38,26.84]
[1760877549948,0.71,189.39,189.38,26.84]
[1760877550140,0.71,189.39,189.37,26.84]
[1760877550445,0.67,189.38,189.37,26.84]
[1760877551533,0.67,189.38,189.33,0.72]
[1760877551713,1.33004857,189.38,189.33,0.72]
[1760877552038,1.33004857,189.38,189.34,27.56]
[1760877552761,0.67,189.37,189.34,26.84]
[1760877553558,1.33011829,189.36,189.3,5.28262017]
[1760877553736,1.33011829,189.36,189.33,26.84]
[1760877554865,0.67,189.36,189.33,26.84]
[1760877555052,1.33011829,189.36,189.33,26.84]
[1760877556169,0.67,189.36,189.33,26.84]
[1760877556535,0.66008343,189.37,189.33,26.84]
[1760877556741,23.54004857,189.38,189.34,0.68]
[1760877556950,24.22004857,189.38,189.34,0.68]
[1760877557642,0.66001372,189.39,189.35,0.68]
[1760877557848,6.619831,189.4,189.36,0.68]
[1760877558744,6.619831,189.4,189.34,5.96150417]
[1760877559244,0.68,189.39,189.34,5.96150417]
[1760877559446,0.68,189.38,189.34,5.96150417]
[1760877559748,5.28011827,189.39,189.34,5.28150417]
[1760877559951,1.34004857,189.38,189.34,5.28150417]
[1760877560155,0.68,189.38,189.34,5.96150417]
[1760877560662,0.68,189.38,189.34,0.68]
[1760877561561,0.68,189.38,189.34,32.80138684]
[1760877561769,0.66001372,189.39,189.35,0.68]
[1760877561943,29.4998417,189.4,189.35,0.68]
[1760877562145,28.82004377,189.4,189.34,26.84]
[1760877562344,28.82004377,189.4,189.17,17.12]
[1760877562345,22.88,189.37,189.17,17.12]
[1760877562644,31.62367327,189.36,189.18,27.54]
[1760877562845,0.68,189.35,189.19,11.55647521]
[1760877563070,1.34018802,189.34,189.2,0.68]
[1760877563375,1.34018802,189.34,189.2,16.18056854]
[1760877563548,0.68,189.33,189.22,10.87647521]
[1760877563748,46.84455336,189.36,189.24,5.28429507]
[1760877563749,29.50244621,189.32,189.24,5.28429507]
[1760877564077,29.50244621,189.32,189.23,5.2845604]
[1760877564270,22.88,189.29,189.24,26.86]
[1760877564451,1.34039729,189.28,189.24,26.86]
[1760877565358,0.68,189.28,189.24,26.86]
[1760877565747,5.94360298,189.28,189.24,26.86]
[1760877565970,5.94360298,189.28,189.19,0.68]
[1760877565971,0.68,189.27,189.19,0.68]
[1760877566148,0.66046708,189.26,189.2,26.86]
[1760877566349,23.56,189.25,189.2,26.86]
[1760877566571,1.34053688,189.24,189.2,26.86]
[1760877567270,0.68,189.23,189.2,26.86]
[1760877567470,0.68,189.22,189.15,5.96680941]
[1760877567681,5.94485644,189.24,189.16,26.86]
[1760877567848,5.94485644,189.24,189.17,0.68]
[1760877568469,6.62485644,189.24,189.17,0.68]
[1760877568971,1.34053688,189.24,189.18,32.1658368]
[1760877569154,0.66046708,189.26,189.19,27.56]
[1760877569554,0.66046708,189.26,189.2,0.68]
[1760877570151,0.66046708,189.26,189.21,26.88]
[1760877570357,0.66046708,189.26,189.22,0.68]
[1760877571073,22.88,189.27,189.23,0.68]
[1760877571392,22.88,189.27,189.23,27.56]
[1760877571880,23.56,189.27,189.23,27.56]
[1760877572184,23.56,189.27,189.22,5.28472231]
[1760877572486,23.56,189.27,189.23,26.88]
[1760877573067,23.56,189.27,189.23,32.84450335]
[1760877573377,22.88,189.27,189.24,0.68]
[1760877573779,22.88,189.27,189.25,0.68]
[1760877573965,0.6603624,189.29,189.25,0.68]
[1760877574167,6.62304456,189.3,189.25,27.54]
[1760877574367,6.62304456,189.3,189.25,0.68]
[1760877574564,0.68,189.29,189.25,27.54]
[1760877574778,0.68,189.29,189.25,0.68]
[1760877574967,0.68,189.29,189.25,27.54]
[1760877575165,0.68,189.29,189.25,26.86]
[1760877575372,0.68,189.29,189.25,0.68]
[1760877575679,0.68,189.29,189.25,27.54]
[1760877576187,0.68,189.29,189.25,26.86]
[1760877576682,0.68,189.28,189.25,26.86]
[1760877577359,0.68,189.28,189.24,5.28427397]
[1760877577556,0.68,189.28,189.25,26.86]
[1760877578689,0.68,189.28,189.24,5.96427397]
[1760877578988,0.68,189.28,189.25,26.86]
[1760877579175,0.68,189.28,189.24,5.96427397]
[1760877579487,0.68,189.28,189.25,26.86]
[1760877579692,28.16290128,189.29,189.25,27.54]
[1760877579864,28.16290128,189.29,189.25,0.68]
[1760877580265,1.34039729,189.28,189.25,26.86]
[1760877580462,0.68,189.27,189.18,5.96597103]
[1760877580783,0.66046708,189.26,189.19,27.54]
[1760877580984,0.68,189.25,189.19,27.54]
[1760877581183,0.68,189.25,189.2,26.86]
[1760877581590,0.68,189.25,189.2,32.14532046]
[1760877581886,5.94459022,189.25,189.2,26.86]
[1760877582076,0.68,189.24,189.2,26.86]
[1760877582280,0.68,189.23,189.2,26.86]
[1760877582582,0.66050198,189.25,189.2,27.54]
[1760877582992,0.68,189.24,189.2,27.54]
[1760877583394,0.68,189.24,189.2,26.86]
[1760877584470,5.94460759,189.25,189.2,0.67]
[1760877584666,5.94460759,189.25,189.2,27.53]
[1760877584872,6.61460759,189.25,189.2,27.53]
[1760877585172,6.61460759,189.25,189.2,32.81537873]
[1760877585378,6.61460759,189.25,189.2,32.79537873]
[1760877585574,6.61460759,189.25,189.2,5.95537873]
[1760877586182,36.08724813,189.29,189.21,0.67]
[1760877586183,1.33039729,189.28,189.21,0.67]
[1760877586797,1.33039729,189.28,189.21,27.53]
[1760877587401,5.28373665,189.26,189.21,27.53]
[1760877587582,0.66050198,189.25,189.22,0.67]
[1760877588098,1.33050198,189.25,189.21,26.86]
[1760877588293,1.33050198,189.25,189.21,0.67]
[1760877588500,1.33050198,189.25,189.21,27.53]
[1760877588799,1.33050198,189.25,189.21,0.67]
[1760877589102,1.33050198,189.25,189.21,27.53]
[1760877589799,5.28373665,189.26,189.22,0.67]
[1760877589992,6.61420373,189.26,189.21,27.53]
[1760877590304,22.88,189.25,189.22,0.67]
[1760877591101,22.88,189.25,189.22,27.53]
[1760877591311,0.66039729,189.28,189.23,0.67]
[1760877591483,1.33032752,189.3,189.23,27.53]
[1760877591801,22.88,189.29,189.24,0.67]
[1760877592101,23.55,189.29,189.24,0.67]
[1760877592304,23.55,189.29,189.25,0.67]
[1760877592772,23.55,189.29,189.24,5.28429407]
[1760877592978,0.67,189.28,189.24,5.28429407]
[1760877593179,0.67,189.27,189.23,26.86]